fUSD/lending_fUSD_20250226
["ID","MTS","AMOUNT","RATE_DAILY","PERIOD"]
[354628861,1740597052646,-3076.03,0.00039999,14]
[354628862,1740597052655,-923.42,0.00039999,14]
[354628863,1740597052665,-526.98,0.00039999,14]
[354628864,1740597052674,-3882.72,0.00039999,14]
[354628865,1740597052684,-1180.24,0.00039999,14]
[354628866,1740597052693,-626.24,0.00039999,14]
[354628867,1740597052703,-930.15,0.00039999,14]
[354628868,1740597052712,-720.45,0.00039999,14]
[354628869,1740597052722,-500.0,0.00039999,14]
[354628870,1740597052731,-766.04,0.00039999,7]
[354628871,1740597052741,-1191.79,0.00039999,14]
[354628872,1740597052751,-531.44,0.00039999,14]
[354628873,1740597052761,-500.0,0.00039999,14]
[354628874,1740597052776,-2753.33,0.00039999,14]
[354628875,1740597052787,-514.92,0.00039999,14]
[354628876,1740597052797,-827.08,0.00039999,14]
[354628877,1740597052807,-741.33,0.0004,14]
[354628878,1740597052818,-395.42,0.0004,120]
[354628879,1740597052828,-671.03,0.0004,14]
[354628880,1740597052838,-552.13,0.0004,14]
[354628881,1740597052848,-967.88,0.0004,14]
[354628882,1740597052858,-1165.46,0.0004,14]
[354628883,1740597052867,-1759.25,0.0004,14]
[354628884,1740597052877,-558.54,0.0004,14]
[354628885,1740597052887,-500.0,0.0004,14]
[354628886,1740597052896,-941.48,0.0004,14]
[354628887,1740597052906,-500.0,0.0004,14]
[354628888,1740597052916,-11768.22,0.0004,120]
[354628889,1740597052926,-341.88359025,0.00040173,2]
[354628890,1740597052936,-254.60759376,0.00040263,7]
[354628891,1740597052946,-1341.2,0.00040272,14]
[354628892,1740597052956,-788.65,0.00040272,14]
[354628893,1740597052966,-641.71,0.00040272,14]
[354628894,1740597052976,-1682.49,0.00040272,14]
[354628895,1740597052986,-2751.73,0.00040272,14]
[354628896,1740597052997,-1325.43,0.00040272,14]
[354628897,1740597053007,-500.28,0.00040272,14]
[354628898,1740597053021,-741.33,0.00040273,14]
[354628899,1740597053030,-723.75,0.00040273,14]
[354628900,1740597053040,-538.07,0.00040273,14]
[354628901,1740597053051,-671.03,0.00040273,14]
[354628902,1740597053061,-552.13,0.00040273,14]
[354628903,1740597053071,-647.14,0.00040273,14]
[354628904,1740597053081,-967.88,0.00040273,14]
[354628905,1740597053092,-501.42,0.00040273,14]
[354628906,1740597053103,-691.43,0.00040273,14]
[354628907,1740597053113,-1165.46,0.00040273,14]
[354628908,1740597053123,-500.0,0.00040273,14]
[354628909,1740597053134,-722.89,0.00040273,14]
[354628910,1740597053143,-1759.25,0.00040273,14]
[354628911,1740597053153,-558.54,0.00040273,14]
[354628912,1740597053163,-534.45,0.00040273,14]
[354628913,1740597053172,-999.53,0.00040273,14]
[354628914,1740597053183,-500.0,0.00040273,14]
[354628915,1740597053192,-500.0,0.00040273,14]
[354628916,1740597053202,-500.0,0.00040273,14]
[354628917,1740597053211,-941.48,0.00040273,14]
[354628918,1740597053221,-500.0,0.00040273,14]
[354628919,1740597053231,-3679.07,0.00040273,14]
[354628920,1740597053241,-986.38,0.00040273,14]
[354628921,1740597053250,-3076.03,0.00040273,14]
[354628922,1740597053260,-923.42,0.00040273,14]
[354628923,1740597053273,-526.98,0.00040273,14]
[354628924,1740597053283,-3882.72,0.00040273,14]
[354628925,1740597053293,-1180.24,0.00040273,14]
[354628926,1740597053302,-626.24,0.00040273,14]
[354628927,1740597053312,-930.15,0.00040273,14]
[354628928,1740597053321,-720.45,0.00040273,14]
[354628929,1740597053331,-439.57,0.00040273,14]
[354628930,1740597053341,-766.04,0.00040273,7]
[354628931,1740597053351,-1191.79,0.00040273,14]
[354628932,1740597053360,-531.44,0.00040273,14]
[354628933,1740597053370,-500.0,0.00040273,14]
[354628934,1740597053382,-2753.33,0.00040273,14]
[354628935,1740597053393,-514.92,0.00040273,14]
[354628936,1740597053403,-827.08,0.00040273,14]
[354628937,1740597053413,-155.1,0.0004028,120]
[354628938,1740597053425,-1012.39690693,0.00040282,120]
[354628939,1740597053435,-1012.39690693,0.00040282,120]
[354628940,1740597053444,-1012.39690693,0.00040288,120]
[354628941,1740597053454,-638.0,0.000403,30]
[354628942,1740597053464,-1012.39690693,0.0004035,120]
[354628943,1740597053474,-200.0,0.00040357,120]
[354628944,1740597053484,-154.96637872,0.00040447,14]
[354628945,1740597053494,-1341.2,0.00040546,14]
[354628946,1740597053503,-788.65,0.00040546,14]
[354628947,1740597053513,-641.71,0.00040546,14]
[354628948,1740597053525,-1682.49,0.00040546,14]
[354628949,1740597053729,-2751.73,0.00040546,14]
[354628950,1740597053752,-1325.43,0.00040546,14]
[354628951,1740597053767,-500.28,0.00040546,14]
[354628952,1740597053778,-741.33,0.00040547,14]
[354628953,1740597053788,-723.75,0.00040547,14]
[354628954,1740597053798,-538.07,0.00040547,14]
[354628955,1740597053808,-671.03,0.00040547,14]
[354628956,1740597053819,-552.13,0.00040547,14]
[354628957,1740597053829,-647.14,0.00040547,14]
[354628958,1740597053839,-967.88,0.00040547,14]
[354628959,1740597053849,-501.42,0.00040547,14]
[354628960,1740597053859,-691.43,0.00040547,14]
[354628961,1740597053869,-1165.46,0.00040547,14]
[354628962,1740597053879,-500.0,0.00040547,14]
[354628963,1740597053889,-722.89,0.00040547,14]
[354628964,1740597053899,-1759.25,0.00040547,14]
[354628965,1740597053909,-558.54,0.00040547,14]
[354628966,1740597053919,-534.45,0.00040547,14]
[354628967,1740597053930,-999.53,0.00040547,14]
[354628968,1740597053940,-500.0,0.00040547,14]
[354628969,1740597053950,-500.39178701,0.00040547,14]
[354628970,1740597053959,-500.0,0.00040547,14]
[354628971,1740597053969,-941.48,0.00040547,14]
[354628972,1740597053979,-500.0,0.00040547,14]
[354628973,1740597053989,-3679.07,0.00040547,14]
[354628974,1740597053999,-986.38,0.00040547,14]
[354628975,1740597054008,-3076.03,0.00040547,14]
[354628976,1740597054020,-923.42,0.00040547,14]
[354628977,1740597054030,-526.98,0.00040547,14]
[354628978,1740597054041,-3882.72,0.00040547,14]
[354628979,1740597054051,-1180.24,0.00040547,14]
[354628980,1740597054061,-626.24,0.00040547,14]
[354628981,1740597054071,-930.15,0.00040547,14]
[354628982,1740597054081,-720.45,0.00040547,14]
[354628983,1740597054091,-766.04,0.00040547,7]
[354628984,1740597054101,-1191.79,0.00040547,14]
[354628985,1740597054111,-531.44,0.00040547,14]
[354628986,1740597054121,-500.0,0.00040547,14]
[354628987,1740597054132,-2753.33,0.00040547,14]
[354628988,1740597054143,-514.92,0.00040547,14]
[354628989,1740597054153,-827.08,0.00040547,14]
[354628990,1740597054163,-1016.324,0.00040563,2]
[354628991,1740597054173,-1425.0,0.00040563,2]
[354628992,1740597054183,-3922.0,0.00040563,2]
[354628993,1740597054193,-150.0,0.00040563,2]
[354628994,1740597054203,-150.0,0.000408,2]
[354628995,1740597054213,-1065.85391458,0.0004081,5]
[354628996,1740597054223,-1341.2,0.0004082,14]
[354628997,1740597054233,-788.65,0.0004082,14]
[354628998,1740597054243,-641.71,0.0004082,14]
[354628999,1740597054253,-1682.49,0.0004082,14]
[354629000,1740597054262,-2751.73,0.0004082,14]
[354629001,1740597054274,-1325.43,0.0004082,14]
[354629002,1740597054284,-500.28,0.0004082,14]
[354629003,1740597054294,-741.33,0.00040821,14]
[354629004,1740597054304,-723.75,0.00040821,14]
[354629005,1740597054314,-538.07,0.00040821,14]
[354629006,1740597054324,-671.03,0.00040821,14]
[354629007,1740597054334,-552.13,0.00040821,14]
[354629008,1740597054344,-647.14,0.00040821,14]
[354629009,1740597054354,-967.88,0.00040821,14]
[354629010,1740597054364,-501.42,0.00040821,14]
[354629011,1740597054375,-691.43,0.00040821,14]
[354629012,1740597054386,-1165.46,0.00040821,14]
[354629013,1740597054395,-500.0,0.00040821,14]
[354629014,1740597054409,-722.89,0.00040821,14]
[354629015,1740597054420,-1759.25,0.00040821,14]
[354629016,1740597054429,-558.54,0.00040821,14]
[354629017,1740597054439,-534.45,0.00040821,14]
[354629018,1740597054449,-999.53,0.00040821,14]
[354629019,1740597054458,-500.0,0.00040821,14]
[354629020,1740597054468,-500.0,0.00040821,14]
[354629021,1740597054479,-941.48,0.00040821,14]
[354629022,1740597054488,-500.0,0.00040821,14]
[354629023,1740597054498,-3679.07,0.00040821,14]
[354629024,1740597054507,-986.38,0.00040821,14]
[354629025,1740597054518,-3076.03,0.00040821,14]
[354629026,1740597054528,-923.42,0.00040821,14]
[354629027,1740597054537,-526.98,0.00040821,14]
[354629028,1740597054546,-3882.72,0.00040821,14]
[354629029,1740597054556,-1180.24,0.00040821,14]
[354629030,1740597054565,-626.24,0.00040821,14]
[354629031,1740597054574,-930.15,0.00040821,14]
[354629032,1740597054584,-720.45,0.00040821,14]
[354629033,1740597054593,-766.04,0.00040821,7]
[354629034,1740597054603,-1191.79,0.00040821,14]
[354629035,1740597054612,-531.44,0.00040821,14]
[354629036,1740597054621,-500.0,0.00040821,14]
[354629037,1740597054631,-2753.33,0.00040821,14]
[354629038,1740597054641,-514.92,0.00040821,14]
[354629039,1740597054651,-827.08,0.00040821,14]
[354629040,1740597054660,-700.0,0.000409,14]
[354629041,1740597054670,-600.0,0.000409,14]
[354629042,1740597054679,-232.40216146,0.00040926,5]
[354629043,1740597054688,-245.16599986,0.00040926,5]
[354629044,1740597054698,-1341.2,0.00041094,14]
[354629045,1740597054707,-788.65,0.00041094,14]
[354629046,1740597054717,-641.71,0.00041094,14]
[354629047,1740597054727,-1682.49,0.00041094,14]
[354629048,1740597054736,-2751.73,0.00041094,14]
[354629049,1740597054746,-1325.43,0.00041094,14]
[354629050,1740597054755,-500.28,0.00041094,14]
[354629051,1740597054766,-741.33,0.00041095,14]
[354629052,1740597054776,-723.75,0.00041095,14]
[354629053,1740597054786,-538.07,0.00041095,14]
[354629054,1740597054796,-671.03,0.00041095,14]
[354629055,1740597054806,-552.13,0.00041095,14]
[354629056,1740597054816,-647.14,0.00041095,14]
[354629057,1740597054825,-967.88,0.00041095,14]
[354629058,1740597054836,-501.42,0.00041095,14]
[354629059,1740597054846,-691.43,0.00041095,14]
[354629060,1740597054856,-1165.46,0.00041095,14]
[354629061,1740597054865,-500.0,0.00041095,14]
[354629062,1740597054875,-722.89,0.00041095,14]
[354629063,1740597054884,-1759.25,0.00041095,14]
[354629064,1740597054894,-558.54,0.00041095,14]
[354629065,1740597054904,-534.45,0.00041095,14]
[354629066,1740597054914,-999.53,0.00041095,14]
[354629067,1740597054924,-500.0,0.00041095,14]
[354629068,1740597054934,-500.0,0.00041095,14]
[354629069,1740597054944,-941.48,0.00041095,14]
[354629070,1740597054954,-500.0,0.00041095,14]
[354629071,1740597054963,-3679.07,0.00041095,14]
[354629072,1740597054973,-986.38,0.00041095,14]
[354629073,1740597054990,-3076.03,0.00041095,14]
[354629074,1740597055000,-923.42,0.00041095,14]
[354629075,1740597055011,-526.98,0.00041095,14]
[354629076,1740597055024,-3882.72,0.00041095,14]
[354629077,1740597055033,-1180.24,0.00041095,14]
[354629078,1740597055042,-626.24,0.00041095,14]
[354629079,1740597055051,-930.15,0.00041095,14]
[354629080,1740597055062,-720.45,0.00041095,14]
[354629081,1740597055071,-766.04,0.00041095,7]
[354629082,1740597055080,-1191.79,0.00041095,14]
[354629083,1740597055090,-531.44,0.00041095,14]
[354629084,1740597055099,-279.35437089,0.00041095,14]
[354629085,1740597055110,-2753.33,0.00041095,14]
[354629086,1740597055119,-514.92,0.00041095,14]
[354629087,1740597055129,-827.08,0.00041095,14]
[354629088,1740597055139,-193.06369735,0.00041096,2]
[354629089,1740597055149,-1500.0,0.00041096,120]
[354629090,1740597055158,-2196.09796213,0.0004136,15]
[354629091,1740597055167,-1341.2,0.00041368,14]
[354629092,1740597055177,-788.65,0.00041368,14]
[354629093,1740597055187,-641.71,0.00041368,14]
[354629094,1740597055196,-1682.49,0.00041368,14]
[354629095,1740597055206,-2751.73,0.00041368,14]
[354629096,1740597055216,-1325.43,0.00041368,14]
[354629097,1740597055225,-500.28,0.00041368,14]
[354629098,1740597055234,-741.33,0.00041369,14]
[354629099,1740597055244,-723.75,0.00041369,14]
[354629100,1740597055253,-538.07,0.00041369,14]
[354629101,1740597055263,-671.03,0.00041369,14]
[354629102,1740597055274,-552.13,0.00041369,14]
[354629103,1740597055284,-647.14,0.00041369,14]
[354629104,1740597055293,-967.88,0.00041369,14]
[354629105,1740597055303,-501.42,0.00041369,14]
[354629106,1740597055314,-691.43,0.00041369,14]
[354629107,1740597055324,-1165.46,0.00041369,14]
[354629108,1740597055333,-500.0,0.00041369,14]
[354629109,1740597055343,-722.89,0.00041369,14]
[354629110,1740597055352,-1759.25,0.00041369,14]
[354629111,1740597055362,-558.54,0.00041369,14]
[354629112,1740597055371,-534.45,0.00041369,14]
[354629113,1740597055387,-999.53,0.00041369,14]
[354629114,1740597055397,-500.0,0.00041369,14]
[354629115,1740597055408,-500.0,0.00041369,14]
[354629116,1740597055419,-941.48,0.00041369,14]
[354629117,1740597055429,-500.0,0.00041369,14]
[354629118,1740597055439,-3679.07,0.00041369,14]
[354629119,1740597055450,-986.38,0.00041369,14]
[354629120,1740597055460,-3076.03,0.00041369,14]
[354629121,1740597055470,-923.42,0.00041369,14]
[354629122,1740597055479,-526.98,0.00041369,14]
[354629123,1740597055489,-3882.72,0.00041369,14]
[354629124,1740597055499,-1180.24,0.00041369,14]
[354629125,1740597055509,-626.24,0.00041369,14]
[354629126,1740597055521,-930.15,0.00041369,14]
[354629127,1740597055531,-720.45,0.00041369,14]
[354629128,1740597055541,-766.04,0.00041369,7]
[354629129,1740597055551,-1191.79,0.00041369,14]
[354629130,1740597055560,-531.44,0.00041369,14]
[354629131,1740597055570,-2753.33,0.00041369,14]
[354629132,1740597055579,-514.92,0.00041369,14]
[354629133,1740597055589,-827.08,0.00041369,14]
[354629134,1740597055599,-500.0,0.00041542,14]
[354629135,1740597055608,-1341.2,0.00041642,14]
[354629136,1740597055618,-788.65,0.00041642,14]
[354629137,1740597055627,-641.71,0.00041642,14]
[354629138,1740597055636,-1682.49,0.00041642,14]
[354629139,1740597055646,-2751.73,0.00041642,14]
[354629140,1740597055656,-1325.43,0.00041642,14]
[354629141,1740597055665,-500.28,0.00041642,14]
[354629142,1740597055675,-741.33,0.00041643,14]
[354629143,1740597055685,-723.75,0.00041643,14]
[354629144,1740597055695,-538.07,0.00041643,14]
[354629145,1740597055704,-671.03,0.00041643,14]
[354629146,1740597055714,-552.13,0.00041643,14]
[354629147,1740597055724,-647.14,0.00041643,14]
[354629148,1740597055733,-967.88,0.00041643,14]
[354629149,1740597055743,-501.42,0.00041643,14]
[354629150,1740597055753,-691.43,0.00041643,14]
[354629151,1740597055762,-1165.46,0.00041643,14]
[354629152,1740597055774,-500.0,0.00041643,14]
[354629153,1740597055784,-722.89,0.00041643,14]
[354629154,1740597055793,-1759.25,0.00041643,14]
[354629155,1740597055803,-558.54,0.00041643,14]
[354629156,1740597055811,-534.45,0.00041643,14]
[354629157,1740597055821,-999.53,0.00041643,14]
[354629158,1740597055831,-302.9730083,0.00041643,14]
[354629159,1740597055841,-500.0,0.00041643,14]
[354629160,1740597055850,-941.48,0.00041643,14]
[354629161,1740597055859,-313.7939626,0.00041643,14]
[354629162,1740597055869,-3679.07,0.00041643,14]
[354629163,1740597055879,-986.38,0.00041643,14]
[354629164,1740597055888,-3076.03,0.00041643,14]
[354629165,1740597055897,-923.42,0.00041643,14]
[354629166,1740597055908,-526.98,0.00041643,14]
[354629167,1740597055918,-3882.72,0.00041643,14]
[354629168,1740597055928,-1180.24,0.00041643,14]
[354629169,1740597055937,-626.24,0.00041643,14]
[354629170,1740597055946,-930.15,0.00041643,14]
[354629171,1740597055956,-720.45,0.00041643,14]
[354629172,1740597055965,-766.04,0.00041643,7]
[354629173,1740597055975,-1191.79,0.00041643,14]
[354629174,1740597055984,-531.44,0.00041643,14]
[354629175,1740597055994,-2753.33,0.00041643,14]
[354629176,1740597056004,-514.92,0.00041643,14]
[354629177,1740597056013,-827.08,0.00041643,14]
[354629178,1740597056026,-152.74,0.000417,31]
[354629179,1740597056035,-152.74,0.000417,31]
[354629180,1740597056045,-152.74,0.000417,31]
[354629181,1740597056054,-152.74,0.000417,31]
[354629182,1740597056064,-152.74,0.000417,31]
[354629183,1740597056073,-500.0,0.00041726,14]
[354629184,1740597056083,-1622.2068558,0.00041781,7]
[354629185,1740597056092,-251517.925453,0.00041781,7]
[354629186,1740597056102,-4343.92961976,0.00041786,15]
[354629187,1740597056113,-679.07,0.00041812,2]
[354629188,1740597056126,-1100.0,0.000419,15]
[354629189,1740597056136,-900.0,0.000419,15]
[354629190,1740597056146,-1035.18144884,0.00041916,60]
[354629191,1740597056155,-1341.2,0.00041916,14]
[354629192,1740597056164,-788.65,0.00041916,14]
[354629193,1740597056174,-641.71,0.00041916,14]
[354629194,1740597056184,-1682.49,0.00041916,14]
[354629195,1740597056193,-2751.73,0.00041916,14]
[354629196,1740597056203,-1325.43,0.00041916,14]
[354629197,1740597056213,-500.28,0.00041916,14]
[354629198,1740597056223,-741.56850713,0.00041917,14]
[354629199,1740597056232,-723.75,0.00041917,14]
[354629200,1740597056242,-538.07,0.00041917,14]
[354629201,1740597056252,-671.26934408,0.00041917,14]
[354629202,1740597056262,-552.14228335,0.00041917,14]
[354629203,1740597056273,-647.14,0.00041917,14]
[354629204,1740597056283,-967.90688945,0.00041917,14]
[354629205,1740597056292,-501.42,0.00041917,14]
[354629206,1740597056302,-691.43,0.00041917,14]
[354629207,1740597056311,-1165.62365548,0.00041917,14]
[354629208,1740597056321,-500.0,0.00041917,14]
[354629209,1740597056330,-722.89,0.00041917,14]
[354629210,1740597056340,-1759.28,0.00041917,14]
[354629211,1740597056349,-558.70389216,0.00041917,14]
[354629212,1740597056359,-534.45,0.00041917,14]
[354629213,1740597056369,-999.53,0.00041917,14]
[354629214,1740597056382,-500.0,0.00041917,14]
[354629215,1740597056391,-941.70314689,0.00041917,14]
[354629216,1740597056402,-3679.07,0.00041917,14]
[354629217,1740597056412,-986.38,0.00041917,14]
[354629218,1740597056423,-3076.03,0.00041917,14]
[354629219,1740597056432,-923.42,0.00041917,14]
[354629220,1740597056442,-526.98,0.00041917,14]
[354629221,1740597056452,-3882.72,0.00041917,14]
[354629222,1740597056463,-1180.24,0.00041917,14]
[354629223,1740597056475,-626.24,0.00041917,14]
[354629224,1740597056487,-930.15,0.00041917,14]
[354629225,1740597056498,-720.45,0.00041917,14]
[354629226,1740597056512,-766.04,0.00041917,7]
[354629227,1740597056525,-1191.79,0.00041917,14]
[354629228,1740597056536,-531.44,0.00041917,14]
[354629229,1740597056549,-2753.33,0.00041917,14]
[354629230,1740597056559,-514.92,0.00041917,14]
[354629231,1740597056570,-827.08,0.00041917,14]
[354629232,1740597056580,-2000.0,0.00042,30]
[354629233,1740597056590,-2000.0,0.00042,30]
[354629234,1740597056600,-2000.0,0.00042,30]
[354629235,1740597056611,-2000.0,0.00042,30]
[354629236,1740597056623,-2000.0,0.00042,30]
[354629237,1740597056633,-2000.0,0.00042,30]
[354629238,1740597056644,-2000.0,0.00042,30]
[354629239,1740597056655,-2000.0,0.00042,30]
[354629240,1740597056666,-2000.0,0.00042,30]
[354629241,1740597056678,-2000.0,0.00042,30]
[354629242,1740597056689,-1341.2,0.0004219,14]
[354629243,1740597056701,-788.65,0.0004219,14]
[354629244,1740597056713,-641.71,0.0004219,14]
[354629245,1740597056724,-1682.49,0.0004219,14]
[354629246,1740597056735,-2751.73,0.0004219,14]
[354629247,1740597056746,-1325.43,0.0004219,14]
[354629248,1740597056757,-500.28,0.0004219,14]
[354629249,1740597056770,-723.75,0.00042191,14]
[354629250,1740597056781,-538.07,0.00042191,14]
[354629251,1740597056791,-647.14,0.00042191,14]
[354629252,1740597056801,-501.42,0.00042191,14]
[354629253,1740597056811,-691.43,0.00042191,14]
[354629254,1740597056822,-615.89354748,0.00042191,14]
[354629255,1740597056834,-722.89,0.00042191,14]
[354629256,1740597056844,-534.45,0.00042191,14]
[354629257,1740597056855,-999.53,0.00042191,14]
[354629258,1740597056866,-599.53023212,0.00042191,14]
[354629259,1740597056877,-3679.07,0.00042191,14]
[354629260,1740597056888,-986.38,0.00042191,14]
[354629261,1740597056899,-3076.03,0.00042191,14]
[354629262,1740597056910,-923.42,0.00042191,14]
[354629263,1740597056921,-526.98,0.00042191,14]
[354629264,1740597056931,-3882.72,0.00042191,14]
[354629265,1740597056942,-1180.24,0.00042191,14]
[354629266,1740597056952,-626.24,0.00042191,14]
[354629267,1740597056963,-930.15,0.00042191,14]
[354629268,1740597056974,-720.45,0.00042191,14]
[354629269,1740597056985,-766.04,0.00042191,7]
[354629270,1740597056996,-1191.79,0.00042191,14]
[354629271,1740597057007,-531.44,0.00042191,14]
[354629272,1740597057021,-2753.33,0.00042191,14]
[354629273,1740597057032,-514.92,0.00042191,14]
[354629274,1740597057043,-827.08,0.00042191,14]
[354629275,1740597057054,-1341.2,0.00042464,14]
[354629276,1740597057066,-788.65,0.00042464,14]
[354629277,1740597057077,-641.71,0.00042464,14]
[354629278,1740597057088,-1682.49,0.00042464,14]
[354629279,1740597057098,-2751.73,0.00042464,14]
[354629280,1740597057109,-1325.43,0.00042464,14]
[354629281,1740597057120,-500.28,0.00042464,14]
[354629282,1740597057130,-723.97393695,0.00042465,14]
[354629283,1740597057141,-538.30415888,0.00042465,14]
[354629284,1740597057152,-647.17220972,0.00042465,14]
[354629285,1740597057162,-501.54662109,0.00042465,14]
[354629286,1740597057173,-691.4884674,0.00042465,14]
[354629287,1740597057184,-723.01301771,0.00042465,14]
[354629288,1740597057194,-534.61932836,0.00042465,14]
[354629289,1740597057206,-999.65262103,0.00042465,14]
[354629290,1740597057217,-3679.07,0.00042465,14]
[354629291,1740597057228,-986.57322539,0.00042465,14]
[354629292,1740597057239,-3076.04463985,0.00042465,14]
[354629293,1740597057251,-923.58983813,0.00042465,14]
[354629294,1740597057262,-527.05134605,0.00042465,14]
[354629295,1740597057274,-3882.72,0.00042465,14]
[354629296,1740597057284,-1180.31583074,0.00042465,14]
[354629297,1740597057295,-626.31357554,0.00042465,14]
[354629298,1740597057305,-930.33353163,0.00042465,14]
[354629299,1740597057316,-720.57931766,0.00042465,14]
[354629300,1740597057327,-766.04,0.00042465,7]
[354629301,1740597057336,-1191.81349471,0.00042465,14]
[354629302,1740597057346,-531.44,0.00042465,14]
[354629303,1740597057356,-2753.33,0.00042465,14]
[354629304,1740597057367,-514.92,0.00042465,14]
[354629305,1740597057378,-827.09343619,0.00042465,14]
[354629306,1740597057389,-177.7373178,0.00042729,28]
[354629307,1740597057404,-1341.30382702,0.00042738,14]
[354629308,1740597057416,-788.84085522,0.00042738,14]
[354629309,1740597057429,-641.76957028,0.00042738,14]
[354629310,1740597057441,-1682.5390097,0.00042738,14]
[354629311,1740597057451,-2751.91650381,0.00042738,14]
[354629312,1740597057461,-1325.57984193,0.00042738,14]
[354629313,1740597057471,-500.39807474,0.00042738,14]
[354629314,1740597057482,-3679.21118092,0.00042739,14]
[354629315,1740597057492,-3882.74014639,0.00042739,14]
[354629316,1740597057502,-766.04900948,0.00042739,7]
[354629317,1740597057512,-531.57,0.00042739,14]
[354629318,1740597057526,-2753.36471033,0.00042739,14]
[354629319,1740597057536,-515.09999999,0.00042739,14]
[354629320,1740597057547,-210.86638804,0.000429,9]
[354629321,1740597057559,-150.0,0.00042939,30]
[354629322,1740597057570,-152.0,0.00043292,4]
[354629323,1740597057582,-439.86,0.00043375,120]
[354629324,1740597057593,-947.31335938,0.00043562,120]
[354629325,1740597057604,-1425.0,0.00043563,2]
[354629326,1740597057614,-3922.0,0.00043563,2]
[354629327,1740597057624,-150.0,0.00043563,2]
[354629328,1740597057636,-152.74,0.000437,36]
[354629329,1740597057647,-152.74,0.000437,36]
[354629330,1740597057657,-152.74,0.000437,36]
[354629331,1740597057667,-152.74,0.000437,36]
[354629332,1740597057679,-152.74,0.000437,36]
[354629333,1740597057689,-152.74,0.000437,36]
[354629334,1740597057699,-152.74,0.000437,36]
[354629335,1740597057710,-152.74,0.000437,36]
[354629336,1740597057719,-152.74,0.000437,36]
[354629337,1740597057729,-152.74,0.000437,36]
[354629338,1740597057739,-500.0,0.00043794,16]
[354629339,1740597057749,-500.0,0.00043794,16]
[354629340,1740597057759,-500.0,0.00043794,16]
[354629341,1740597057771,-500.0,0.00043794,16]
[354629342,1740597057782,-500.0,0.00043794,16]
[354629343,1740597057792,-500.0,0.00043794,16]
[354629344,1740597057802,-500.0,0.00043794,16]
[354629345,1740597057812,-500.0,0.00043794,16]
[354629346,1740597057822,-500.0,0.00043794,16]
[354629347,1740597057832,-500.0,0.00043794,16]
[354629348,1740597057842,-500.0,0.00043794,16]
[354629349,1740597057851,-500.0,0.00043794,16]
[354629350,1740597057861,-500.0,0.00043794,16]
[354629351,1740597057871,-500.0,0.00043794,16]
[354629352,1740597057881,-500.0,0.00043794,16]
[354629353,1740597057892,-500.0,0.00043794,16]
[354629354,1740597057902,-500.0,0.00043794,16]
[354629355,1740597057911,-500.0,0.00043794,16]
[354629356,1740597057921,-500.0,0.00043794,16]
[354629357,1740597057931,-500.0,0.00043794,16]
[354629358,1740597057942,-1000.0,0.00043896,2]
[354629359,1740597057952,-2196.09796213,0.00044009,15]
[354629360,1740597057962,-679.07,0.00044076,2]